[Event "ROU-chT Men Superliga 2018"]
[Site "Sovata"]
[Date "2018.12.02"]
[Round "9"]
[White "Vasiesiu, Dan"]
[Black "Balla, Tamas-Kristof"]
[Result "1/2-1/2"]
[ECO "B42"]
[WhiteElo "2394"]
[BlackElo "2316"]
[Annotator "NA"]
[PlyCount "36"]
[EventDate "2018.11.24"]
[EventType "team-tourn"]
[EventCountry "ROU"]
[SourceTitle "playchess.com"]
[Source "ChessBase"]
[SourceQuality "1"]
[TimeControl "40/5400+30:1800+30"]

1. e4 {[%emt 0:00:00]} c5 {[%emt 0:00:00]} 2. Nf3 {[%emt 0:00:00]} e6 {[%emt 0:00:00]} 3. d4 {[%emt 0:00:00]} cxd4 {[%emt 0:00:00]} 4. Nxd4 {[%emt 0:00:02]} a6 {[%emt 0:00:00]} 5. Bd3 {[%emt 0:00:23]} Nf6 {[%emt 0:00:00]} 6. O-O {[%emt 0:00:49]} Qc7 {[%emt 0:00:00]} 7. Qe2 {[%emt 0:01:16]} d6 {[%emt 0:00:08]} 8. f4 {[%emt 0:03:12]} Nbd7 {[%emt 0:02:50]} 9. c4 {[%emt 0:01:52]} Be7 {[%emt 0:04:27]} 10. b3 {[%emt 0:01:56]} O-O {[%emt 0:01:37]} 11. Bb2 {[%emt 0:00:52]} Re8 {[%emt 0:02:59] LiveBook: 6 Games} 12. Nf3 {[%emt 0:12:11]} e5 {[%emt 0:10:32]} 13. f5 {[%emt 0:06:20]} Nc5 {[%emt 0:00:30]} 14. Nc3 {[%emt 0:00:56]} Nxd3 {[%emt 0:00:46]} 15. Qxd3 {[%emt 0:00:10]} b5 {[%emt 0:00:07]} 16. Nd5 {[%emt 0:03:43]} Nxd5 $11 {[%emt 0:07:11]} 17. cxd5 {[%emt 0:00:34]} Qb6+ {[%emt 0:00:21]} 18. Kh1 {[%emt 0:00:27]} a5 {[%emt 0:00:19]} 1/2-1/2

[Event "ROU-chT Men Superliga 2018"]
[Site "Sovata"]
[Date "2018.12.02"]
[Round "9"]
[White "Stoleriu, George"]
[Black "Vasiesiu, Victor"]
[Result "1/2-1/2"]
[ECO "B40"]
[WhiteElo "2362"]
[BlackElo "2270"]
[Annotator "NA"]
[PlyCount "21"]
[EventDate "2018.11.24"]
[EventType "team-tourn"]
[EventCountry "ROU"]
[SourceTitle "playchess.com"]
[Source "ChessBase"]
[SourceQuality "1"]
[TimeControl "40/5400+30:1800+30"]

{[%evp 10,19,29,32767,32767,32767,32767,32767,8,8,32767,18]} 1. e4 {[%emt 0:00:00]} c5 {[%emt 0:00:00]} 2. Nf3 {[%emt 0:00:00]} e6 {[%emt 0:00:08]} 3. b3 {[%emt 0:00:26]} Nc6 {[%emt 0:02:18]} 4. Bb2 {[%emt 0:01:36]} a6 {[%emt 0:02:41]} 5. g3 d6 {[%emt 0:14:26]} 6. Bg2 {[%emt 0:03:35]} Nf6 {[%emt 0:00:07]} 7. Qe2 {[%emt 0:09:59]} Be7 {[%emt 0:00:33]} 8. O-O {[%emt 0:00:20]} O-O {[%emt 0:00:27]} 9. d4 {[%emt 0:10:36]} cxd4 {[%emt 0:04:55]} 10. Nxd4 $11 {LiveBook: 7 Games} Bd7 {[%emt 0:02:47]} 11. Rd1 {[%emt 0:07:31]} 1/2-1/2

[Event "ROU-chT Men Superliga 2018"]
[Site "Sovata"]
[Date "2018.12.02"]
[Round "9"]
[White "Manea, Alexandru"]
[Black "Vrencian, Lehel"]
[Result "1/2-1/2"]
[ECO "D02"]
[WhiteElo "2347"]
[BlackElo "2321"]
[Annotator "NA"]
[PlyCount "58"]
[EventDate "2018.11.24"]
[EventType "team-tourn"]
[EventCountry "ROU"]
[SourceTitle "playchess.com"]
[Source "ChessBase"]
[SourceQuality "1"]
[TimeControl "40/5400+30:1800+30"]

1. d4 {[%emt 0:00:00]} d5 {[%emt 0:03:41]} 2. Nf3 {[%emt 0:00:00]} Nf6 {[%emt 0:00:06]} 3. g3 {[%emt 0:00:02]} c6 {[%emt 0:00:10]} 4. Bg2 {[%emt 0:00:19]} Bf5 {[%emt 0:00:08]} 5. c4 {[%emt 0:00:05]} e6 {[%emt 0:00:05]} 6. Nc3 {[%emt 0:01:06]} h6 {[%emt 0:00:27]} 7. Qb3 {[%emt 0:00:07]} Qb6 {[%emt 0:00:34]} 8. O-O {[%emt 0:02:11]} Nbd7 {[%emt 0:00:18]} 9. c5 {[%emt 0:01:21]} Qxb3 {[%emt 0:00:26] D11: Slav Defence: 3 Nf3 sidelines and 3...Nf6 4 e3 Bg4} (9... Qc7 10. Bf4 Qc8 11. Nd2 g5 12. Bd6 Bxd6 13. cxd6 O-O 14. f3 c5 15. e4 Bg6 16. Rac1 Qc6 17. e5 {1-0 (34) Stupak,K (2588)-Rodshtein,M (2699) Katowice 2017}) 10. axb3 {[%emt 0:00:02]} a6 {[%emt 0:00:11]} 11. b4 {[%emt 0:00:08]} Rc8 {[%emt 0:00:21]} 12. h3 {[%emt 0:03:31]} Be7 {[%emt 0:02:14]} 13. g4 {[%emt 0:06:57]} Bh7 {[%emt 0:00:24]} 14. Bf4 {[%emt 0:00:17]} O-O {[%emt 0:00:04]} 15. Nd2 {[%emt 0:00:14]} Rfe8 {[%emt 0:00:07]} 16. Nb3 {[%emt 0:00:09]} Bd8 {[%emt 0:00:04]} 17. Na5 {[%emt 0:22:33]} Bxa5 {[%emt 0:00:42]} 18. bxa5 {[%emt 0:00:43]} e5 $146 {[%emt 0:03:18]} 19. dxe5 {[%emt 0:01:33]} Nxe5 {[%emt 0:00:07]} 20. Bxe5 {[%emt 0:03:31]} Rxe5 {[%emt 0:00:05]} 21. Rfd1 {[%emt 0:03:56]} Ne4 {[%emt 0:12:15]} 22. Nxe4 {[%emt 0:02:54]} Bxe4 {[%emt 0:00:08]} 23. e3 {[%emt 0:00:04]} Bxg2 {[%emt 0:00:20]} 24. Kxg2 {[%emt 0:00:01]} Re4 {[%emt 0:00:38]} 25. Rd4 {[%emt 0:00:11]} Rxd4 {[%emt 0:03:37]} 26. exd4 $11 {[%emt 0:01:30]} Re8 {[%emt 0:00:09]} 27. Ra4 {[%emt 0:00:34]} g5 {[%emt 0:01:34]} 28. Rb4 {[%emt 0:00:06]} Re7 {[%emt 0:00:04]} 29. Kf3 {[%emt 0:00:13]} Kg7 {[%emt 0:00:07] Ke4} 1/2-1/2

[Event "ROU-chT Men Superliga 2018"]
[Site "Sovata"]
[Date "2018.12.02"]
[Round "9"]
[White "Ionescu, Doru-Alexandru"]
[Black "Nastase, Robert-Paul"]
[Result "1-0"]
[ECO "A46"]
[WhiteElo "2321"]
[BlackElo "2296"]
[Annotator "NA"]
[PlyCount "57"]
[EventDate "2018.11.24"]
[EventType "team-tourn"]
[EventCountry "ROU"]
[SourceTitle "playchess.com"]
[Source "ChessBase"]
[SourceQuality "1"]
[TimeControl "40/5400+30:1800+30"]

1. d4 {[%emt 0:00:00]} e6 {[%emt 0:00:22]} 2. Nf3 {[%emt 0:00:00]} Nf6 {[%emt 0:00:07]} 3. Bg5 {[%emt 0:00:00]} h6 {[%emt 0:00:06]} 4. Bh4 {[%emt 0:00:00]} c5 {[%emt 0:00:08]} 5. e3 {[%emt 0:00:04]} Qb6 {[%emt 0:02:01]} 6. Qc1 {[%emt 0:01:04] A46: 1 d4 Nf6 2 Nf3 e6: Torre, London and Colle Systems} Nc6 {[%emt 0:02:11]} 7. c3 {[%emt 0:00:50]} d5 {[%emt 0:00:23]} 8. Nbd2 {[%emt 0:00:13]} Bd7 {[%emt 0:01:57]} 9. Bd3 {[%emt 0:00:19]} Rc8 {[%emt 0:00:13]} 10. Qb1 {[%emt 0:02:26]} Ng8 $146 {[%emt 0:18:57]} ({Better is} 10... cxd4 $11 11. exd4 Nh5) ({Predecessor:} 10... Bd6 11. O-O O-O 12. dxc5 Bxc5 13. Bxf6 gxf6 14. c4 dxc4 15. Nxc4 Qc7 16. a3 {½-½ (42) Jacquin,R (2495)-Nasybullin,V (2604) ICCF email 2007}) 11. O-O {[%emt 0:01:23]} c4 {[%emt 0:00:06]} 12. Bc2 {[%emt 0:00:24]} f5 {[%emt 0:00:09]} 13. Bg3 {[%emt 0:01:09]} Nf6 {[%emt 0:00:15]} 14. b3 {[%emt 0:01:18]} Na5 {[%emt 0:07:50]} 15. Qb2 {[%emt 0:37:59]} Be7 {[%emt 0:00:30]} 16. Ne5 {[%emt 0:04:13]} O-O {[%emt 0:02:44]} 17. Ng6 {[%emt 0:08:01]} Rfe8 {[%emt 0:00:30]} 18. Nxe7+ {[%emt 0:00:05]} Rxe7 {[%emt 0:00:06]} 19. Rfb1 {[%emt 0:03:16]} cxb3 {[%emt 0:14:22]} 20. axb3 {[%emt 0:00:09]} Rf7 {[%emt 0:00:39]} 21. Nf3 {[%emt 0:04:54]} Bb5 {[%emt 0:05:55]} (21... Nc6 $16) 22. c4 {[%emt 0:11:13]} dxc4 $18 {[%emt 0:01:29]} 23. bxc4 {[%emt 0:00:06]} Ba6 {[%emt 0:02:56]} 24. Qa2 {[%emt 0:01:06]} Bxc4 {[%emt 0:02:15]} 25. Qxa5 {[%emt 0:00:14]} Qxa5 {[%emt 0:00:04]} 26. Rxa5 {[%emt 0:00:08]} b6 {[%emt 0:00:03]} 27. Raa1 {[%emt 0:00:16]} Rb7 {[%emt 0:01:02]} 28. Ne5 {[%emt 0:00:42]} Bd5 {[%emt 0:00:46]} 29. Bd3 {[%emt 0:00:14]} 1-0

[Event "ROU-chT Men Superliga 2018"]
[Site "Sovata"]
[Date "2018.12.02"]
[Round "9"]
[White "Ileana, George"]
[Black "Vajda, Levente"]
[Result "0-1"]
[ECO "C54"]
[WhiteElo "2318"]
[BlackElo "2547"]
[Annotator "RC"]
[PlyCount "114"]
[EventDate "2018.11.24"]
[EventType "team-tourn"]
[EventCountry "ROU"]
[SourceTitle "playchess.com"]
[Source "ChessBase"]
[SourceQuality "1"]
[TimeControl "40/5400+30:1800+30"]

1. e4 {[%emt 0:00:00]} e5 {[%emt 0:00:00]} 2. Nf3 {[%emt 0:00:00]} Nc6 {[%emt 0:00:00]} 3. Bc4 {[%emt 0:00:00]} Bc5 {[%emt 0:00:00]} 4. c3 {[%emt 0:00:00]} Nf6 {[%emt 0:00:00]} 5. d3 {[%emt 0:00:03]} O-O {[%emt 0:00:09]} 6. O-O {[%emt 0:00:18]} d5 {[%emt 0:00:07]} 7. exd5 {[%emt 0:00:21]} Nxd5 {[%emt 0:00:06]} 8. Nbd2 {[%emt 0:00:36]} Nb6 {[%emt 0:01:10]} 9. Bb5 {[%emt 0:00:52]} Bd6 {[%emt 0:07:03]} 10. Ne4 {[%emt 0:02:09]} a6 {[%emt 0:02:11]} 11. Bxc6 {[%emt 0:00:13]} bxc6 {[%emt 0:00:06]} 12. d4 {[%emt 0:00:09]} exd4 {[%emt 0:01:10]} 13. Qxd4 {[%emt 0:00:14]} Be6 {[%emt 0:06:45]} 14. b3 {[%emt 0:01:41]} Bd5 {[%emt 0:04:20]} 15. c4 {[%emt 0:01:33]} c5 {[%emt 0:05:03]} 16. Qe3 {[%emt 0:00:09]} Bc6 {[%emt 0:00:55]} 17. Nxd6 {[%emt 0:00:51]} cxd6 {[%emt 0:00:09]} 18. Bb2 {[%emt 0:00:11]} Re8 {[%emt 0:03:43]} 19. Qc3 {[%emt 0:00:07]} f6 {[%emt 0:00:04]} 20. Rfe1 {[%emt 0:00:04]} Qd7 {[%emt 0:02:37]} 21. h3 {[%emt 0:09:19]} Qf5 {[%emt 0:01:41]} 22. Rad1 {[%emt 0:01:20]} Bxf3 {[%emt 0:03:56]} 23. Qxf3 {[%emt 0:00:43]} Qxf3 {[%emt 0:01:03]} 24. Rxe8+ {[%emt 0:02:41]} Rxe8 {[%emt 0:00:06]} 25. gxf3 {[%emt 0:00:04]} Re6 {[%emt 0:00:10]} 26. Bc3 {[%emt 0:00:44]} Kf7 {[%emt 0:02:04]} 27. Ba5 {[%emt 0:01:04]} Nd7 {[%emt 0:04:55]} 28. Kg2 {[%emt 0:00:43]} f5 {[%emt 0:04:01]} 29. b4 {[%emt 0:01:05]} Ne5 {[%emt 0:09:46]} 30. bxc5 {[%emt 0:00:44]} Nxc4 {[%emt 0:00:11]} 31. Bb4 {[%emt 0:01:20]} dxc5 {[%emt 0:07:49]} 32. Bxc5 {[%emt 0:00:06]} Rc6 {[%emt 0:01:27]} 33. Ba7 {[%emt 0:01:27]} Ne5 {[%emt 0:05:21]} 34. Bb8 {[%emt 0:06:09]} Rg6+ {[%emt 0:01:26]} 35. Kf1 {[%emt 0:01:07]} Nxf3 {[%emt 0:00:13]} 36. Rd5 {[%emt 0:01:12]} Ke6 {[%emt 0:09:07]} 37. Rd6+ {[%emt 0:06:06]} Ke7 {[%emt 0:00:31]} 38. Rd5 {[%emt 0:04:10]} Rb6 {[%emt 0:01:20]} 39. Bg3 {[%emt 0:00:58]} Ke6 {[%emt 0:03:27]} 40. Ra5 {[%emt 0:00:00]} Rc6 {[%emt 0:00:00]} 41. Ra4 {[%emt 0:05:29]} g5 {[%emt 0:05:15]} 42. Kg2 {[%emt 0:01:19]} Ne1+ {[%emt 0:00:24]} 43. Kf1 {[%emt 0:00:19]} Nd3 {[%emt 0:00:05]} 44. f4 {[%emt 0:03:44]} gxf4 {[%emt 0:08:31]} 45. Bxf4 {[%emt 0:00:12]} Nxf4 {[%emt 0:00:07]} 46. Rxf4 {[%emt 0:00:05]} Rc1+ {[%emt 0:00:05]} 47. Kf2 {[%emt 0:00:40]} Rc2+ {[%emt 0:00:07]} 48. Kf3 {[%emt 0:00:15]} Rxa2 {[%emt 0:00:28]} 49. Rh4 {[%emt 0:00:04]} Ra3+ {[%emt 0:00:21]} 50. Kg2 {[%emt 0:00:07]} a5 {[%emt 0:02:08]} 51. Rxh7 {[%emt 0:00:06]} a4 {[%emt 0:01:46]} 52. h4 {[%emt 0:00:25]} f4 {[%emt 0:01:49]} 53. Rh5 {[%emt 0:00:26]} Ra1 {[%emt 0:01:19]} 54. Ra5 {[%emt 0:01:04]} a3 {[%emt 0:00:08]} 55. h5 {[%emt 0:01:51]} a2 {[%emt 0:00:10]} 56. Ra6+ {[%emt 0:00:47]} Kf7 {[%emt 0:02:05]} 57. Ra3 {[%emt 0:00:55]} Kg7 {[%emt 0:00:07]} 0-1

[Event "ROU-chT Men Superliga 2018"]
[Site "Sovata"]
[Date "2018.12.02"]
[Round "9"]
[White "Iordachescu, Sorin-Emanuel"]
[Black "Toma, Radu-Cristian"]
[Result "0-1"]
[ECO "E15"]
[WhiteElo "1750"]
[BlackElo "2354"]
[Annotator "NA"]
[PlyCount "64"]
[EventDate "2018.11.24"]
[EventType "team-tourn"]
[EventCountry "ROU"]
[SourceTitle "playchess.com"]
[Source "ChessBase"]
[SourceQuality "1"]
[TimeControl "40/5400+30:1800+30"]

1. d4 {[%emt 0:00:00]} Nf6 {[%emt 0:00:55]} 2. c4 {[%emt 0:00:06]} e6 {[%emt 0:00:10]} 3. Nf3 {[%emt 0:01:09]} b6 {[%emt 0:00:25]} 4. g3 {[%emt 0:01:30]} Bb4+ {[%emt 0:00:12]} 5. Bd2 {[%emt 0:00:20]} Be7 {[%emt 0:00:05]} 6. Bg2 {[%emt 0:01:10]} c6 {[%emt 0:00:06]} 7. Nc3 {[%emt 0:06:56]} d5 {[%emt 0:00:45]} 8. cxd5 {[%emt 0:03:58]} cxd5 {[%emt 0:03:12]} 9. Ne5 {[%emt 0:07:38]} O-O {[%emt 0:00:31]} 10. O-O {[%emt 0:00:04]} Bb7 {[%emt 0:05:45]} 11. Rc1 {[%emt 0:07:29]} Nfd7 {[%emt 0:03:28]} 12. f4 {[%emt 0:10:33]} Nxe5 {[%emt 0:04:46]} 13. fxe5 {[%emt 0:06:03]} Nc6 {[%emt 0:00:54] LiveBook: 3 Games} 14. e3 {[%emt 0:02:53]} Na5 {[%emt 0:23:36]} 15. Qe2 {[%emt 0:15:09]} Qd7 {[%emt 0:09:56]} 16. Rfd1 {[%emt 0:06:23]} f6 {[%emt 0:04:59]} 17. exf6 {[%emt 0:01:57]} Bxf6 {[%emt 0:00:21]} 18. Qg4 $11 {[%emt 0:04:59]} Nc4 {[%emt 0:08:39]} 19. b3 {[%emt 0:02:32]} Nb2 {[%emt 0:02:05]} 20. Rf1 {[%emt 0:01:41]} Nd3 {[%emt 0:00:35]} 21. Rb1 {[%emt 0:02:16]} a5 {[%emt 0:01:41]} 22. Ne2 {[%emt 0:02:43]} Rac8 {[%emt 0:01:15]} 23. Nc3 {[%emt 0:04:42]} Qe8 {[%emt 0:08:05]} 24. a4 {[%emt 0:01:38]} Ba6 {[%emt 0:01:57]} 25. Rfd1 {[%emt 0:03:54]} Nf2 {[%emt 0:01:48]} 26. Kxf2 {[%emt 0:01:46]} h5 {[%emt 0:01:40]} 27. Qh3 {[%emt 0:00:52]} Bxd4+ {[%emt 0:00:16]} 28. Kg1 {[%emt 0:00:34]} Bxc3 {[%emt 0:00:21]} 29. Bc1 {[%emt 0:01:04]} Be2 {[%emt 0:01:42]} 30. Ba3 {[%emt 0:00:58]} Bg4 {[%emt 0:00:51]} 31. Bxf8 {[%emt 0:01:27]} Bxh3 {[%emt 0:00:08]} 32. Bxh3 {[%emt 0:00:08]} Kxf8 {[%emt 0:00:06]} 0-1